[Event "Titled Tuesday Blitz May 30 Late 2023"]
[White "Gorovets, Andrey"]
[Black "Mathieu, Phileas"]
[WhiteFideId "13504037"]
[BlackFideId "36048410"]
[WhiteElo "2459"]
[BlackElo "2241"]
[Result "1-0"]
[Round "02"]
[TimeControl "180+2"]
[Date "2023.05.31"]
[WhiteClock "0:00:42"]
[BlackClock "0:01:10"]

1. Nf3 {[%clk 0:02:58]}  Nf6 {[%clk 0:02:58]} 2. c4 {[%clk 0:02:58]}  e6 {[%clk 0:02:57]} 3. g3 {[%clk 0:02:58]}  a6 {[%clk 0:02:49]} 4. b3 {[%clk 0:02:50]}  b5 {[%clk 0:02:49]} 5. Nc3 {[%clk 0:02:51]}  b4 {[%clk 0:02:47]} 6. Na4 {[%clk 0:02:51]}  Bb7 {[%clk 0:02:47]} 7. d4 {[%clk 0:02:51]}  d5 {[%clk 0:02:46]} 8. Bg2 {[%clk 0:02:45]}  Be7 {[%clk 0:02:44]} 9. O-O {[%clk 0:02:43]}  O-O {[%clk 0:02:44]} 10. cxd5 {[%clk 0:02:38]}  Nxd5 {[%clk 0:02:39]} 11. Bb2 {[%clk 0:02:34]}  Nd7 {[%clk 0:02:37]} 12. Rc1 {[%clk 0:02:34]}  Rc8 {[%clk 0:02:36]} 13. Nc5 {[%clk 0:02:02]}  Nxc5 {[%clk 0:02:14]} 14. dxc5 {[%clk 0:02:03]}  Bf6 {[%clk 0:02:15]} 15. Ne5 {[%clk 0:01:56]}  Ba8 {[%clk 0:02:04]} 16. Qd4 {[%clk 0:01:43]}  Nc3 {[%clk 0:01:57]} 17. Bxc3 {[%clk 0:01:43]}  Bxg2 {[%clk 0:01:55]} 18. Kxg2 {[%clk 0:01:26]}  bxc3 {[%clk 0:01:55]} 19. Qe4 {[%clk 0:01:26]}  Qd5 {[%clk 0:01:29]} 20. Qxd5 {[%clk 0:01:25]}  exd5 {[%clk 0:01:30]} 21. Nd7 {[%clk 0:01:25]}  Rfe8 {[%clk 0:01:29]} 22. Nxf6+ {[%clk 0:01:25]}  gxf6 {[%clk 0:01:30]} 23. e3 {[%clk 0:01:21]}  d4 {[%clk 0:01:26]} 24. exd4 {[%clk 0:01:22]}  Rcd8 {[%clk 0:01:25]} 25. Rfd1 {[%clk 0:01:19]}  Re4 {[%clk 0:01:24]} 26. d5 {[%clk 0:01:03]}  Re5 {[%clk 0:01:24]} 27. Rxc3 {[%clk 0:01:01]}  Rexd5 {[%clk 0:01:24]} 28. Rxd5 {[%clk 0:01:02]}  Rxd5 {[%clk 0:01:24]} 29. Rc4 {[%clk 0:00:58]}  Kf8 {[%clk 0:01:19]} 30. Kf3 {[%clk 0:00:56]}  a5 {[%clk 0:01:17]} 31. Ke3 {[%clk 0:00:53]}  Ke7 {[%clk 0:01:17]} 32. Re4+ {[%clk 0:00:51]}  Kf8 {[%clk 0:01:16]} 33. Rc4 {[%clk 0:00:50]}  Ke7 {[%clk 0:01:16]} 34. a3 {[%clk 0:00:49]}  h5 {[%clk 0:01:14]} 35. b4 {[%clk 0:00:47]}  axb4 {[%clk 0:01:15]} 36. axb4 {[%clk 0:00:48]}  c6 {[%clk 0:01:15]} 37. Rd4 {[%clk 0:00:46]}  Rf5 {[%clk 0:01:14]} 38. f4 {[%clk 0:00:44]}  Ke6 {[%clk 0:01:11]} 39. Ke4 {[%clk 0:00:44]}  h4 {[%clk 0:01:09]} 40. g4 {[%clk 0:00:42]}  Rd5 {[%clk 0:01:10]} 41. f5+ {[%clk 0:00:40]}  Kd7 {[%clk 0:01:09]} 42. Rxd5+ {[%clk 0:00:41]}  cxd5+ {[%clk 0:01:10]} 43. Kxd5 {[%clk 0:00:42]} 1-0


[Site "https://www.chess.com"]

[Event "Titled Tuesday Blitz May 30 Late 2023"]
[White "Thorfinnsson, Bragi"]
[Black "Petrosyan, Manuel"]
[WhiteFideId "2300958"]
[BlackFideId "13300857"]
[WhiteElo "2322"]
[BlackElo "2576"]
[Result "0-1"]
[Round "02"]
[TimeControl "180+2"]
[Date "2023.05.31"]
[WhiteClock "0:01:29"]
[BlackClock "0:00:38"]

1. d4 {[%clk 0:02:59]}  Nf6 {[%clk 0:02:59]} 2. c4 {[%clk 0:02:59]}  e6 {[%clk 0:02:59]} 3. Nc3 {[%clk 0:02:58]}  Bb4 {[%clk 0:02:59]} 4. Nf3 {[%clk 0:02:56]}  b6 {[%clk 0:02:50]} 5. Bg5 {[%clk 0:02:51]}  h6 {[%clk 0:02:48]} 6. Bh4 {[%clk 0:02:45]}  g5 {[%clk 0:02:47]} 7. Bg3 {[%clk 0:02:43]}  Ne4 {[%clk 0:02:47]} 8. Qc2 {[%clk 0:02:41]}  Bb7 {[%clk 0:02:45]} 9. e3 {[%clk 0:02:39]}  d6 {[%clk 0:02:32]} 10. Bd3 {[%clk 0:02:34]}  f5 {[%clk 0:02:26]} 11. a3 {[%clk 0:02:29]}  Bxc3+ {[%clk 0:02:25]} 12. bxc3 {[%clk 0:02:30]}  Nd7 {[%clk 0:02:23]} 13. d5 {[%clk 0:02:29]}  Ndc5 {[%clk 0:02:19]} 14. Nd4 {[%clk 0:02:23]}  Qf6 {[%clk 0:02:07]} 15. dxe6 {[%clk 0:02:12]}  O-O-O {[%clk 0:02:00]} 16. e7 {[%clk 0:02:07]}  Rde8 {[%clk 0:01:58]} 17. a4 {[%clk 0:02:06]}  f4 {[%clk 0:01:40]} 18. exf4 {[%clk 0:01:58]}  gxf4 {[%clk 0:01:38]} 19. O-O {[%clk 0:01:58]}  fxg3 {[%clk 0:01:21]} 20. fxg3 {[%clk 0:01:59]}  Qg5 {[%clk 0:01:21]} 21. Nf5 {[%clk 0:01:49]}  Qd2 {[%clk 0:00:50]} 22. Qxd2 {[%clk 0:01:37]}  Nxd2 {[%clk 0:00:50]} 23. Rfd1 {[%clk 0:01:32]}  Ndb3 {[%clk 0:00:42]} 24. Ra2 {[%clk 0:01:29]}  Nxd3 {[%clk 0:00:41]} 25. Rxd3 {[%clk 0:01:29]}  Nc1 {[%clk 0:00:38]} 0-1


[Site "https://www.chess.com"]

[Event "Titled Tuesday Blitz May 30 Late 2023"]
[White "Holt, Conrad"]
[Black "Golubev, Mikhail"]
[WhiteFideId "2034387"]
[BlackFideId "14100983"]
[WhiteElo "2592"]
[BlackElo "2374"]
[Result "1-0"]
[Round "02"]
[TimeControl "180+2"]
[Date "2023.05.31"]
[WhiteClock "0:01:14"]
[BlackClock "0:00:06"]

1. d4 {[%clk 0:02:57]}  Nf6 {[%clk 0:02:59]} 2. c4 {[%clk 0:02:58]}  g6 {[%clk 0:02:59]} 3. Nc3 {[%clk 0:02:58]}  Bg7 {[%clk 0:03:00]} 4. e4 {[%clk 0:02:58]}  d6 {[%clk 0:03:01]} 5. Nf3 {[%clk 0:02:59]}  O-O {[%clk 0:03:00]} 6. h3 {[%clk 0:02:59]}  e5 {[%clk 0:02:59]} 7. dxe5 {[%clk 0:02:58]}  dxe5 {[%clk 0:02:58]} 8. Qxd8 {[%clk 0:02:58]}  Rxd8 {[%clk 0:02:58]} 9. Bg5 {[%clk 0:02:59]}  Na6 {[%clk 0:02:51]} 10. Nd5 {[%clk 0:02:59]}  Rd6 {[%clk 0:02:50]} 11. Bxf6 {[%clk 0:02:59]}  Bxf6 {[%clk 0:02:50]} 12. Rc1 {[%clk 0:03:00]}  b6 {[%clk 0:02:15]} 13. b4 {[%clk 0:02:54]}  c6 {[%clk 0:01:36]} 14. c5 {[%clk 0:02:46]}  Re6 {[%clk 0:01:19]} 15. Bxa6 {[%clk 0:02:42]}  cxd5 {[%clk 0:01:18]} 16. Bxc8 {[%clk 0:02:31]}  Rxc8 {[%clk 0:01:17]} 17. exd5 {[%clk 0:02:32]}  Rd6 {[%clk 0:01:17]} 18. Ke2 {[%clk 0:02:17]}  Rxd5 {[%clk 0:01:07]} 19. cxb6 {[%clk 0:02:15]}  Rxc1 {[%clk 0:01:06]} 20. Rxc1 {[%clk 0:02:11]}  axb6 {[%clk 0:01:06]} 21. Rc6 {[%clk 0:02:08]}  Bd8 {[%clk 0:00:50]} 22. a4 {[%clk 0:02:03]}  Kf8 {[%clk 0:00:49]} 23. Nd2 {[%clk 0:01:57]}  Ke7 {[%clk 0:00:36]} 24. Nc4 {[%clk 0:01:54]}  Rd4 {[%clk 0:00:27]} 25. Nxb6 {[%clk 0:01:27]}  Bxb6 {[%clk 0:00:15]} 26. Rxb6 {[%clk 0:01:27]}  f5 {[%clk 0:00:16]} 27. a5 {[%clk 0:01:25]}  Kd7 {[%clk 0:00:11]} 28. a6 {[%clk 0:01:24]}  Kc7 {[%clk 0:00:12]} 29. Rb7+ {[%clk 0:01:20]}  Kc8 {[%clk 0:00:12]} 30. b5 {[%clk 0:01:18]}  Rb4 {[%clk 0:00:11]} 31. Kd3 {[%clk 0:01:17]}  e4+ {[%clk 0:00:10]} 32. Kc3 {[%clk 0:01:17]}  Rb1 {[%clk 0:00:10]} 33. Kc4 {[%clk 0:01:16]}  f4 {[%clk 0:00:10]} 34. Re7 {[%clk 0:01:14]}  Rc1+ {[%clk 0:00:09]} 35. Kb4 {[%clk 0:01:14]}  Rd1 {[%clk 0:00:06]} 1-0


[Site "https://www.chess.com"]

[Event "Titled Tuesday Blitz May 30 Late 2023"]
[White "Bilan, Danila"]
[Black "Maksimovic, Bojan"]
[WhiteFideId "24161918"]
[BlackFideId "14408120"]
[WhiteElo "2182"]
[BlackElo "2468"]
[Result "0-1"]
[Round "02"]
[TimeControl "180+2"]
[Date "2023.05.31"]
[WhiteClock "0:00:03"]
[BlackClock "0:00:58"]

1. d4 {[%clk 0:02:56]}  g6 {[%clk 0:02:59]} 2. Nf3 {[%clk 0:02:56]}  Bg7 {[%clk 0:02:59]} 3. Bg5 {[%clk 0:02:56]}  h6 {[%clk 0:02:58]} 4. Bh4 {[%clk 0:02:55]}  f5 {[%clk 0:02:49]} 5. e3 {[%clk 0:02:53]}  g5 {[%clk 0:02:47]} 6. Bg3 {[%clk 0:02:52]}  c5 {[%clk 0:02:46]} 7. c3 {[%clk 0:02:44]}  Qb6 {[%clk 0:02:46]} 8. Qc2 {[%clk 0:02:37]}  d6 {[%clk 0:02:33]} 9. Nbd2 {[%clk 0:02:34]}  Nf6 {[%clk 0:02:34]} 10. Bd3 {[%clk 0:02:28]}  cxd4 {[%clk 0:02:13]} 11. cxd4 {[%clk 0:02:12]}  Nc6 {[%clk 0:02:13]} 12. Bxf5 {[%clk 0:01:58]}  Nb4 {[%clk 0:02:12]} 13. Bg6+ {[%clk 0:01:39]}  Kf8 {[%clk 0:02:12]} 14. Qb3 {[%clk 0:01:37]}  Nbd5 {[%clk 0:02:08]} 15. Rc1 {[%clk 0:01:15]}  Be6 {[%clk 0:01:58]} 16. Qxb6 {[%clk 0:01:05]}  Nxb6 {[%clk 0:01:59]} 17. a3 {[%clk 0:00:59]}  Nfd5 {[%clk 0:01:48]} 18. O-O {[%clk 0:00:45]}  Bf6 {[%clk 0:01:45]} 19. Bc2 {[%clk 0:00:35]}  a5 {[%clk 0:01:34]} 20. Bd3 {[%clk 0:00:23]}  Na4 {[%clk 0:01:32]} 21. Rc2 {[%clk 0:00:19]}  Rc8 {[%clk 0:01:27]} 22. Rfc1 {[%clk 0:00:15]}  Rxc2 {[%clk 0:01:27]} 23. Rxc2 {[%clk 0:00:16]}  Kg7 {[%clk 0:01:27]} 24. e4 {[%clk 0:00:16]}  Nf4 {[%clk 0:01:26]} 25. Bxf4 {[%clk 0:00:09]}  gxf4 {[%clk 0:01:26]} 26. e5 {[%clk 0:00:10]}  dxe5 {[%clk 0:01:27]} 27. dxe5 {[%clk 0:00:10]}  Rd8 {[%clk 0:01:28]} 28. exf6+ {[%clk 0:00:10]}  Kxf6 {[%clk 0:01:28]} 29. Bc4 {[%clk 0:00:09]}  Bxc4 {[%clk 0:01:22]} 30. Rxc4 {[%clk 0:00:09]}  Nxb2 {[%clk 0:01:22]} 31. Rxf4+ {[%clk 0:00:10]}  Kg6 {[%clk 0:01:23]} 32. g3 {[%clk 0:00:09]}  b5 {[%clk 0:01:23]} 33. Re4 {[%clk 0:00:07]}  Kf6 {[%clk 0:01:23]} 34. Re5 {[%clk 0:00:07]}  Rb8 {[%clk 0:01:21]} 35. Rh5 {[%clk 0:00:06]}  Kg6 {[%clk 0:01:21]} 36. Re5 {[%clk 0:00:05]}  Kf6 {[%clk 0:01:21]} 37. Ne4+ {[%clk 0:00:05]}  Kf7 {[%clk 0:01:21]} 38. Rc5 {[%clk 0:00:04]}  a4 {[%clk 0:01:17]} 39. Rc2 {[%clk 0:00:03]}  Nc4 {[%clk 0:01:17]} 40. Ra2 {[%clk 0:00:02]}  Rd8 {[%clk 0:01:17]} 41. Nc3 {[%clk 0:00:02]}  Rb8 {[%clk 0:01:02]} 42. Nd4 {[%clk 0:00:02]}  Nd6 {[%clk 0:01:03]} 43. Nc6 {[%clk 0:00:02]}  Rc8 {[%clk 0:01:02]} 44. Ne5+ {[%clk 0:00:02]}  Ke6 {[%clk 0:01:02]} 45. Nxb5 {[%clk 0:00:01]}  Nxb5 {[%clk 0:01:00]} 46. Nd3 {[%clk 0:00:01]}  Rc3 {[%clk 0:01:00]} 47. Nb4 {[%clk 0:00:01]}  Rxa3 {[%clk 0:01:00]} 48. Re2+ {[%clk 0:00:01]}  Kd6 {[%clk 0:01:00]} 49. Nc2 {[%clk 0:00:02]}  Ra2 {[%clk 0:01:00]} 50. Kf1 {[%clk 0:00:03]}  Nc3 {[%clk 0:00:58]} 51. Rd2+ {[%clk 0:00:02]}  Kc5 {[%clk 0:00:59]} 52. Ne3 {[%clk 0:00:03]}  Rxd2 {[%clk 0:00:58]} 0-1


[Site "https://www.chess.com"]

[Event "Titled Tuesday Blitz May 30 Late 2023"]
[White "Meshkovs, Nikita"]
[Black "Suder, Jakub"]
[WhiteFideId "11602740"]
[BlackFideId "1195310"]
[WhiteElo "2537"]
[BlackElo "2287"]
[Result "1/2-1/2"]
[Round "02"]
[TimeControl "180+2"]
[Date "2023.05.31"]
[WhiteClock "0:00:03"]
[BlackClock "0:00:02"]

1. c4 {[%clk 0:03:00]}  e6 {[%clk 0:03:00]} 2. Nf3 {[%clk 0:02:54]}  d5 {[%clk 0:02:59]} 3. e3 {[%clk 0:02:55]}  Nf6 {[%clk 0:02:59]} 4. d4 {[%clk 0:02:52]}  Be7 {[%clk 0:02:59]} 5. Be2 {[%clk 0:02:47]}  dxc4 {[%clk 0:02:57]} 6. O-O {[%clk 0:02:47]}  a6 {[%clk 0:02:53]} 7. Bxc4 {[%clk 0:02:42]}  b5 {[%clk 0:02:53]} 8. Bb3 {[%clk 0:02:42]}  Bb7 {[%clk 0:02:53]} 9. Nc3 {[%clk 0:02:40]}  Nbd7 {[%clk 0:02:52]} 10. e4 {[%clk 0:02:36]}  c5 {[%clk 0:02:50]} 11. e5 {[%clk 0:02:27]}  Ng4 {[%clk 0:02:24]} 12. h3 {[%clk 0:01:56]}  cxd4 {[%clk 0:02:17]} 13. Qxd4 {[%clk 0:01:48]}  Bxf3 {[%clk 0:02:10]} 14. hxg4 {[%clk 0:01:48]}  Bb7 {[%clk 0:02:06]} 15. Ne4 {[%clk 0:01:46]}  Bxe4 {[%clk 0:01:46]} 16. Qxe4 {[%clk 0:01:46]}  Rc8 {[%clk 0:01:45]} 17. Rd1 {[%clk 0:01:32]}  Qc7 {[%clk 0:01:41]} 18. Bf4 {[%clk 0:01:17]}  Nc5 {[%clk 0:01:39]} 19. Qf3 {[%clk 0:01:14]}  Nxb3 {[%clk 0:01:38]} 20. axb3 {[%clk 0:01:13]}  O-O {[%clk 0:01:23]} 21. Rxa6 {[%clk 0:01:12]}  Qc2 {[%clk 0:01:21]} 22. Ra7 {[%clk 0:00:46]}  Bc5 {[%clk 0:01:19]} 23. Rb7 {[%clk 0:00:41]}  Rfd8 {[%clk 0:01:01]} 24. Rd2 {[%clk 0:00:31]}  Rxd2 {[%clk 0:00:54]} 25. Bxd2 {[%clk 0:00:32]}  Rf8 {[%clk 0:00:48]} 26. Be3 {[%clk 0:00:30]}  Bxe3 {[%clk 0:00:32]} 27. Qxe3 {[%clk 0:00:31]}  Qxb2 {[%clk 0:00:30]} 28. Rxb5 {[%clk 0:00:31]}  h6 {[%clk 0:00:30]} 29. Rb7 {[%clk 0:00:27]}  Ra8 {[%clk 0:00:25]} 30. Qf4 {[%clk 0:00:23]}  Qb1+ {[%clk 0:00:21]} 31. Kh2 {[%clk 0:00:23]}  Qg6 {[%clk 0:00:22]} 32. b4 {[%clk 0:00:21]}  h5 {[%clk 0:00:19]} 33. g5 {[%clk 0:00:16]}  Ra4 {[%clk 0:00:18]} 34. f3 {[%clk 0:00:15]}  Kh7 {[%clk 0:00:13]} 35. Kg3 {[%clk 0:00:14]}  Kg8 {[%clk 0:00:12]} 36. Kh4 {[%clk 0:00:11]}  Ra1 {[%clk 0:00:05]} 37. Kg3 {[%clk 0:00:09]}  Ra4 {[%clk 0:00:04]} 38. Rb8+ {[%clk 0:00:05]}  Kh7 {[%clk 0:00:04]} 39. Rf8 {[%clk 0:00:05]}  Ra7 {[%clk 0:00:02]} 40. Kh4 {[%clk 0:00:05]}  Rb7 {[%clk 0:00:03]} 41. Qd4 {[%clk 0:00:04]}  Qb1 {[%clk 0:00:02]} 42. Qd8 {[%clk 0:00:03]}  Qh1+ {[%clk 0:00:02]} 43. Kg3 {[%clk 0:00:03]}  Qe1+ {[%clk 0:00:02]} 44. Kh3 {[%clk 0:00:03]}  Qh1+ {[%clk 0:00:02]} 45. Kg3 {[%clk 0:00:03]}  Qe1+ {[%clk 0:00:02]} 46. Kf4 {[%clk 0:00:04]}  Qc1+ {[%clk 0:00:02]} 47. Kg3 {[%clk 0:00:03]}  Qe1+ {[%clk 0:00:02]} 1/2-1/2


[Site "https://www.chess.com"]

[Event "Titled Tuesday Blitz May 30 Late 2023"]
[White "Zochowski, Kacper"]
[Black "Bordi, Kevin"]
[WhiteFideId "1125494"]
[BlackFideId "621862"]
[WhiteElo "2235"]
[BlackElo "2766"]
[Result "0-1"]
[Round "02"]
[TimeControl "180+2"]
[Date "2023.05.31"]
[WhiteClock "0:00:01"]
[BlackClock "0:02:15"]

1. e4 {[%clk 0:03:00]}  d5 {[%clk 0:02:59]} 2. exd5 {[%clk 0:03:00]}  Qxd5 {[%clk 0:03:00]} 3. Nf3 {[%clk 0:02:59]}  Bg4 {[%clk 0:03:00]} 4. Be2 {[%clk 0:03:00]}  Nc6 {[%clk 0:03:00]} 5. d4 {[%clk 0:03:00]}  O-O-O {[%clk 0:03:00]} 6. c4 {[%clk 0:03:01]}  Qd7 {[%clk 0:03:00]} 7. Be3 {[%clk 0:02:58]}  e6 {[%clk 0:03:00]} 8. Nbd2 {[%clk 0:02:58]}  Nh6 {[%clk 0:02:59]} 9. Bxh6 {[%clk 0:02:49]}  gxh6 {[%clk 0:02:59]} 10. O-O {[%clk 0:02:42]}  Rg8 {[%clk 0:02:58]} 11. Re1 {[%clk 0:02:25]}  Nxd4 {[%clk 0:02:56]} 12. Nxd4 {[%clk 0:02:08]}  Qxd4 {[%clk 0:02:51]} 13. Bxg4 {[%clk 0:01:57]}  Rxg4 {[%clk 0:02:51]} 14. Qe2 {[%clk 0:01:24]}  Bb4 {[%clk 0:02:27]} 15. Nf3 {[%clk 0:01:05]}  Qxc4 {[%clk 0:02:25]} 16. Qxc4 {[%clk 0:01:01]}  Rxc4 {[%clk 0:02:25]} 17. Re5 {[%clk 0:00:55]}  Rc2 {[%clk 0:02:21]} 18. Rh5 {[%clk 0:00:04]}  Rxb2 {[%clk 0:02:21]} 19. Rxh6 {[%clk 0:00:04]}  Bc5 {[%clk 0:02:21]} 20. Rxh7 {[%clk 0:00:03]}  Rxf2 {[%clk 0:02:17]} 21. Kh1 {[%clk 0:00:03]}  Rg8 {[%clk 0:02:16]} 22. Nh4 {[%clk 0:00:01]}  Be7 {[%clk 0:02:15]} 0-1


[Site "https://www.chess.com"]

[Event "Titled Tuesday Blitz May 30 Late 2023"]
[White "Hambleton, Aman"]
[Black "Gheorghiu, Calin"]
[WhiteFideId "2606577"]
[BlackFideId "1200305"]
[WhiteElo "2511"]
[BlackElo "2223"]
[Result "1-0"]
[Round "02"]
[TimeControl "180+2"]
[Date "2023.05.31"]
[WhiteClock "0:00:04"]
[BlackClock "0:00:12"]

1. c4 {[%clk 0:03:00]}  e5 {[%clk 0:02:59]} 2. g3 {[%clk 0:02:56]}  Nf6 {[%clk 0:02:59]} 3. Bg2 {[%clk 0:02:55]}  d5 {[%clk 0:02:59]} 4. cxd5 {[%clk 0:02:55]}  Nxd5 {[%clk 0:02:59]} 5. Nc3 {[%clk 0:02:56]}  Nb6 {[%clk 0:02:59]} 6. e3 {[%clk 0:02:50]}  Nc6 {[%clk 0:02:57]} 7. Nge2 {[%clk 0:02:46]}  Be7 {[%clk 0:02:52]} 8. f4 {[%clk 0:02:45]}  Bg4 {[%clk 0:02:39]} 9. h3 {[%clk 0:02:22]}  Bxe2 {[%clk 0:02:37]} 10. Qxe2 {[%clk 0:02:23]}  exf4 {[%clk 0:02:35]} 11. gxf4 {[%clk 0:02:04]}  Bh4+ {[%clk 0:02:27]} 12. Kf1 {[%clk 0:02:04]}  Qe7 {[%clk 0:02:15]} 13. a4 {[%clk 0:01:49]}  a5 {[%clk 0:01:55]} 14. b3 {[%clk 0:01:28]}  O-O {[%clk 0:01:49]} 15. Ba3 {[%clk 0:00:58]}  Nb4 {[%clk 0:01:48]} 16. Bxb7 {[%clk 0:00:59]}  Rad8 {[%clk 0:01:48]} 17. Rg1 {[%clk 0:00:34]}  c6 {[%clk 0:01:42]} 18. Bxc6 {[%clk 0:00:31]}  Bf6 {[%clk 0:01:36]} 19. Bf3 {[%clk 0:00:15]}  Rfe8 {[%clk 0:01:31]} 20. Rd1 {[%clk 0:00:14]}  Qe6 {[%clk 0:01:04]} 21. Ne4 {[%clk 0:00:11]}  Be7 {[%clk 0:00:58]} 22. Bb2 {[%clk 0:00:11]}  f6 {[%clk 0:00:56]} 23. Qg2 {[%clk 0:00:07]}  g6 {[%clk 0:00:48]} 24. h4 {[%clk 0:00:03]}  Nd3 {[%clk 0:00:38]} 25. Bc3 {[%clk 0:00:02]}  Nd5 {[%clk 0:00:37]} 26. Ba1 {[%clk 0:00:01]}  f5 {[%clk 0:00:30]} 27. h5 {[%clk 0:00:01]}  fxe4 {[%clk 0:00:23]} 28. hxg6 {[%clk 0:00:02]}  hxg6 {[%clk 0:00:23]} 29. Bxe4 {[%clk 0:00:02]}  N5xf4 {[%clk 0:00:24]} 30. exf4 {[%clk 0:00:02]}  Nxf4 {[%clk 0:00:24]} 31. Qh1 {[%clk 0:00:01]}  Qxe4 {[%clk 0:00:22]} 32. Qxe4 {[%clk 0:00:01]}  Rf8 {[%clk 0:00:21]} 33. Rxg6+ {[%clk 0:00:02]}  Nxg6+ {[%clk 0:00:21]} 34. Kg1 {[%clk 0:00:01]}  Rd6 {[%clk 0:00:21]} 35. Rf1 {[%clk 0:00:01]}  Re8 {[%clk 0:00:19]} 36. Qg2 {[%clk 0:00:01]}  Re6 {[%clk 0:00:15]} 37. Bc3 {[%clk 0:00:01]}  Bc5+ {[%clk 0:00:15]} 38. d4 {[%clk 0:00:01]}  Bd6 {[%clk 0:00:16]} 39. Rf3 {[%clk 0:00:01]}  R8e7 {[%clk 0:00:14]} 40. Qf2 {[%clk 0:00:01]}  Rg7 {[%clk 0:00:14]} 41. Kf1 {[%clk 0:00:02]}  Re4 {[%clk 0:00:10]} 42. d5 {[%clk 0:00:02]}  Bf4 {[%clk 0:00:10]} 43. Bxg7 {[%clk 0:00:02]}  Kxg7 {[%clk 0:00:10]} 44. Qb2+ {[%clk 0:00:02]}  Kh6 {[%clk 0:00:11]} 45. Qc2 {[%clk 0:00:02]}  Rd4 {[%clk 0:00:10]} 46. d6 {[%clk 0:00:02]}  Rxd6 {[%clk 0:00:10]} 47. Rxf4 {[%clk 0:00:02]}  Nxf4 {[%clk 0:00:10]} 48. Qh2+ {[%clk 0:00:02]}  Kg5 {[%clk 0:00:11]} 49. Qg3+ {[%clk 0:00:02]}  Kf5 {[%clk 0:00:11]} 50. Qc3 {[%clk 0:00:02]}  Rd1+ {[%clk 0:00:11]} 51. Kf2 {[%clk 0:00:02]}  Rd3 {[%clk 0:00:11]} 52. Qxa5+ {[%clk 0:00:02]}  Rd5 {[%clk 0:00:12]} 53. Qb6 {[%clk 0:00:01]}  Nd3+ {[%clk 0:00:11]} 54. Kf1 {[%clk 0:00:01]}  Ne5 {[%clk 0:00:12]} 55. a5 {[%clk 0:00:01]}  Ke4 {[%clk 0:00:13]} 56. Ke2 {[%clk 0:00:02]}  Nf3 {[%clk 0:00:12]} 57. Qe3+ {[%clk 0:00:02]}  Kf5 {[%clk 0:00:11]} 58. Qxf3+ {[%clk 0:00:03]}  Ke6 {[%clk 0:00:12]} 59. Qxd5+ {[%clk 0:00:03]}  Kxd5 {[%clk 0:00:12]} 60. b4 {[%clk 0:00:04]} 1-0


[Site "https://www.chess.com"]

[Event "Titled Tuesday Blitz May 30 Late 2023"]
[White "Kleinman, Michael"]
[Black "Simonian, Hrair"]
[WhiteFideId "2609479"]
[BlackFideId "13302337"]
[WhiteElo "2287"]
[BlackElo "2447"]
[Result "1-0"]
[Round "02"]
[TimeControl "180+2"]
[Date "2023.05.31"]
[WhiteClock "0:00:29"]
[BlackClock "0:00:02"]

1. e4 {[%clk 0:03:00]}  c5 {[%clk 0:02:59]} 2. Nf3 {[%clk 0:03:00]}  e6 {[%clk 0:02:29]} 3. c4 {[%clk 0:02:55]}  Nc6 {[%clk 0:02:27]} 4. d4 {[%clk 0:02:53]}  cxd4 {[%clk 0:02:28]} 5. Nxd4 {[%clk 0:02:53]}  Qc7 {[%clk 0:02:27]} 6. Nc3 {[%clk 0:02:47]}  Nf6 {[%clk 0:02:10]} 7. Be2 {[%clk 0:02:43]}  Bb4 {[%clk 0:02:09]} 8. O-O {[%clk 0:02:26]}  Bxc3 {[%clk 0:02:02]} 9. Nb5 {[%clk 0:02:15]}  Qe5 {[%clk 0:01:47]} 10. bxc3 {[%clk 0:01:52]}  Nxe4 {[%clk 0:01:40]} 11. Ba3 {[%clk 0:01:51]}  Nc5 {[%clk 0:00:12]} 12. Qd6 {[%clk 0:01:25]}  b6 {[%clk 0:00:09]} 13. Nc7+ {[%clk 0:00:58]}  Kd8 {[%clk 0:00:09]} 14. Qxe5 {[%clk 0:00:55]}  Nxe5 {[%clk 0:00:09]} 15. Nxa8 {[%clk 0:00:56]}  Bb7 {[%clk 0:00:09]} 16. Nxb6 {[%clk 0:00:54]}  axb6 {[%clk 0:00:09]} 17. Rab1 {[%clk 0:00:52]}  Kc7 {[%clk 0:00:09]} 18. Rb2 {[%clk 0:00:48]}  Ra8 {[%clk 0:00:08]} 19. Bxc5 {[%clk 0:00:42]}  bxc5 {[%clk 0:00:09]} 20. f4 {[%clk 0:00:42]}  Ng6 {[%clk 0:00:08]} 21. Rxb7+ {[%clk 0:00:31]}  Kxb7 {[%clk 0:00:04]} 22. Bf3+ {[%clk 0:00:31]}  d5 {[%clk 0:00:02]} 23. cxd5 {[%clk 0:00:32]}  Rxa2 {[%clk 0:00:03]} 24. dxe6+ {[%clk 0:00:31]}  Kc7 {[%clk 0:00:03]} 25. f5 {[%clk 0:00:29]}  Nf8 {[%clk 0:00:02]} 26. e7 {[%clk 0:00:29]} 1-0


[Site "https://www.chess.com"]

[Event "Titled Tuesday Blitz May 30 Late 2023"]
[White "Aggelis, Nikolaos"]
[Black "Brodowski, Piotr"]
[WhiteFideId "4213220"]
[BlackFideId "1124480"]
[WhiteElo "2189"]
[BlackElo "2351"]
[Result "0-1"]
[Round "02"]
[TimeControl "180+2"]
[Date "2023.05.31"]
[WhiteClock "0:00:54"]
[BlackClock "0:00:35"]

1. c4 {[%clk 0:02:57]}  g6 {[%clk 0:02:58]} 2. Nf3 {[%clk 0:02:53]}  Bg7 {[%clk 0:02:58]} 3. g3 {[%clk 0:02:54]}  e5 {[%clk 0:02:58]} 4. Nc3 {[%clk 0:02:47]}  f5 {[%clk 0:02:58]} 5. d3 {[%clk 0:02:42]}  d6 {[%clk 0:02:58]} 6. Bg2 {[%clk 0:02:42]}  Nf6 {[%clk 0:02:58]} 7. O-O {[%clk 0:02:43]}  O-O {[%clk 0:02:58]} 8. Rb1 {[%clk 0:02:44]}  a5 {[%clk 0:02:57]} 9. a3 {[%clk 0:02:43]}  h6 {[%clk 0:02:50]} 10. Bd2 {[%clk 0:02:40]}  g5 {[%clk 0:02:48]} 11. b4 {[%clk 0:02:40]}  axb4 {[%clk 0:02:48]} 12. axb4 {[%clk 0:02:41]}  f4 {[%clk 0:02:48]} 13. Ne1 {[%clk 0:02:31]}  Nc6 {[%clk 0:02:43]} 14. Nc2 {[%clk 0:02:28]}  Ne7 {[%clk 0:02:42]} 15. d4 {[%clk 0:02:26]}  Ng6 {[%clk 0:02:34]} 16. dxe5 {[%clk 0:02:15]}  dxe5 {[%clk 0:02:34]} 17. Ne4 {[%clk 0:02:14]}  c6 {[%clk 0:02:33]} 18. Bc3 {[%clk 0:02:14]}  Bf5 {[%clk 0:02:30]} 19. Qxd8 {[%clk 0:02:07]}  Raxd8 {[%clk 0:02:30]} 20. Nxf6+ {[%clk 0:02:07]}  Bxf6 {[%clk 0:02:29]} 21. Rfc1 {[%clk 0:02:08]}  e4 {[%clk 0:02:21]} 22. Bxf6 {[%clk 0:02:06]}  Rxf6 {[%clk 0:02:22]} 23. b5 {[%clk 0:02:00]}  Rd2 {[%clk 0:02:15]} 24. bxc6 {[%clk 0:02:00]}  bxc6 {[%clk 0:02:15]} 25. Rb8+ {[%clk 0:01:47]}  Nf8 {[%clk 0:02:08]} 26. e3 {[%clk 0:01:40]}  f3 {[%clk 0:01:49]} 27. Bf1 {[%clk 0:01:30]}  c5 {[%clk 0:01:49]} 28. Na3 {[%clk 0:01:25]}  Ra6 {[%clk 0:01:44]} 29. Rb3 {[%clk 0:01:22]}  Ng6 {[%clk 0:01:20]} 30. Nb1 {[%clk 0:01:22]}  Rd8 {[%clk 0:00:54]} 31. Ra3 {[%clk 0:01:21]}  Rxa3 {[%clk 0:00:51]} 32. Nxa3 {[%clk 0:01:21]}  Ne5 {[%clk 0:00:52]} 33. Nb5 {[%clk 0:01:17]}  Rd2 {[%clk 0:00:51]} 34. Ra1 {[%clk 0:01:07]}  Ng4 {[%clk 0:00:50]} 35. Bh3 {[%clk 0:01:04]}  Nxe3 {[%clk 0:00:45]} 36. Ra8+ {[%clk 0:01:01]}  Kh7 {[%clk 0:00:36]} 37. Ra7+ {[%clk 0:00:56]}  Kg6 {[%clk 0:00:34]} 38. Ra6+ {[%clk 0:00:54]}  Kh5 {[%clk 0:00:35]} 0-1


[Site "https://www.chess.com"]